bitfinex-derivatives/quotes_ETHF0:USTF0_20240910
["timestamp","ask_amount","ask_price","bid_price","bid_amount"]
[1725960452085,1.23,2347.7,2347.6,1.86501834]
[1725960452384,3.44919936,2347.7,2347.6,1.86501834]
[1725960452993,3.44919936,2347.7,2347.4,0.7655185]
[1725960453178,1.66443928,2347.6,2347.5,1.09186428]
[1725960455289,3.44919936,2347.7,2347.6,0.42594]
[1725960455473,3.44919936,2347.7,2347.6,1.09184428]
[1725960456575,3.44919936,2347.7,2347.6,0.42594]
[1725960457883,3.87511936,2347.7,2347.6,0.42594]
[1725960458183,3.87512936,2347.7,2347.5,0.42595]
[1725960458389,3.44919936,2347.7,2347.6,0.42594]
[1725960462285,1.23,2347.7,2347.6,0.42594]
[1725960464682,3.44919936,2347.7,2347.6,1.09182682]
[1725960464990,1.23,2347.7,2347.6,1.09182682]
[1725960465490,3.15623054,2347.9,2347.6,0.66588682]
[1725960465681,1.6652095,2347.8,2347.7,0.42592]
[1725960465885,1.6652095,2347.8,2347.7,5.71983907]
[1725960466092,1.6652095,2347.8,2347.7,6.78514958]
[1725960466488,1.6652095,2347.8,2347.7,5.71983907]
[1725960466686,1.6652095,2347.9,2347.8,0.4259]
[1725960466993,1.66539605,2347.9,2347.8,1.2029]
[1725960467296,1.66539605,2347.9,2347.8,1.86871657]
[1725960467498,2.64615415,2348.0,2347.9,0.42589]
[1725960468295,2.22028415,2348.0,2347.9,0.42589]
[1725960468489,2.22028415,2348.0,2347.9,1.09170025]
[1725960468997,3.45028415,2348.1,2348.0,0.42587]
[1725960469190,1.23,2348.1,2348.0,0.42587]
[1725960469697,3.44988187,2348.1,2348.0,0.42587]
[1725960469892,3.87573187,2348.1,2348.0,0.42587]
[1725960470087,1.23,2348.1,2348.0,0.42587]
[1725960470291,2.77403054,2348.2,2348.1,1.49048]
[1725960470507,1.66505452,2348.2,2348.1,7.47981313]
[1725960470794,1.66505452,2348.3,2348.2,0.42583]
[1725960470995,1.66505452,2348.3,2348.2,7.16766313]
[1725960471299,1.66505452,2348.4,2348.3,0.42581]
[1725960471495,1.66505452,2348.4,2348.3,1.09157045]
[1725960471691,1.66505452,2348.4,2348.3,5.34997045]
[1725960472500,1.66505452,2348.4,2348.3,1.09157045]
[1725960473096,1.66505452,2348.4,2348.3,0.42581]
[1725960473400,2.89505452,2348.4,2348.3,1.0914647]
[1725960473598,2.89505452,2348.4,2348.2,0.3691]
[1725960473901,2.89505452,2348.4,2348.3,0.42581]
[1725960474291,2.89505452,2348.4,2348.2,0.3691]
[1725960474688,2.89505452,2348.4,2348.3,0.42581]
[1725960475093,1.23,2348.4,2348.3,0.42581]
[1725960475294,1.6558,2348.4,2348.2,0.79493]
[1725960475500,2.06003565,2348.3,2348.2,0.79493]
[1725960477405,0.398,2348.3,2348.2,0.79493]
[1725960479492,1.23,2348.4,2348.3,0.42581]
[1725960481305,1.23,2348.4,2348.2,0.3691]
[1725960481601,3.31783565,2348.4,2348.2,0.79492]
[1725960481905,1.6558,2348.4,2348.2,0.79492]
[1725960482997,1.23,2348.4,2348.2,0.79492]
[1725960483198,1.23,2348.4,2348.3,0.42581]
[1725960484417,2.89203565,2348.4,2348.3,0.42581]
[1725960485101,2.89203565,2348.4,2348.2,0.79492]
[1725960485303,2.89203565,2348.4,2348.3,0.42581]
[1725960486207,1.23,2348.4,2348.3,0.42581]
[1725960486902,2.41993565,2348.5,2348.3,0.42581]
[1725960487098,1.66203565,2348.6,2348.2,1.64693357]
[1725960487301,1.66203565,2348.6,2348.5,0.42578]
[1725960488105,2.89203565,2348.7,2348.6,0.42576]
[1725960488306,2.89203565,2348.7,2348.5,0.42576]
[1725960488503,1.23,2348.6,2348.5,0.42576]
[1725960491809,2.89203565,2348.7,2348.6,0.42576]
[1725960492210,1.66203565,2348.8,2348.7,0.42574]
[1725960492606,1.66203565,2349.1,2348.7,5.4876]
[1725960492803,2.70897269,2349.3,2348.8,0.7501]
[1725960492804,1.23,2349.0,2348.8,0.7501]
[1725960493103,1.6557,2349.0,2348.8,0.80192]
[1725960493299,1.23,2349.0,2348.8,0.3762]
[1725960493499,0.3862,2348.9,2348.8,0.80192]
[1725960495811,0.81192,2348.9,2348.7,0.42573]
[1725960496006,0.7727,2348.9,2348.8,0.42572]
[1725960496208,1.19841,2348.9,2348.7,0.42573]
[1725960496511,1.23,2348.8,2348.7,0.42573]
[1725960500209,0.3862,2348.9,2348.8,0.42572]
[1725960500509,1.65569,2349.0,2348.8,0.42572]
[1725960501101,1.65567,2349.1,2348.9,0.4257]
[1725960501610,1.65568,2349.1,2348.6,0.4006]
[1725960501911,1.65568,2349.1,2348.9,0.4257]
[1725960502613,1.65568,2349.1,2349.0,0.3876]
[1725960505024,1.65568,2349.1,2349.0,0.7793]
[1725960505225,0.42568,2349.1,2349.0,0.7793]
[1725960505524,1.65568,2349.1,2349.0,0.7793]
[1725960506020,0.42569,2349.0,2348.5,0.3653]
[1725960506313,0.81851,2348.9,2348.7,0.42573]
[1725960507606,3.03858269,2348.9,2348.7,0.42573]
[1725960507806,2.64580269,2348.8,2348.6,1.20285]
[1725960508005,1.65823338,2348.7,2348.6,1.20285]
[1725960508209,2.22007269,2348.8,2348.6,1.20285]
[1725960508608,2.22007269,2348.7,2348.6,1.20285]
[1725960511412,3.19976054,2348.8,2348.6,1.20285]
[1725960512006,2.21313704,2348.7,2348.6,1.20285]
[1725960512413,3.19976054,2348.8,2348.6,1.20285]
[1725960513116,2.77403054,2348.7,2348.6,1.20285]
[1725960513729,2.77403054,2348.7,2348.6,0.7771]
[1725960513922,2.77403054,2348.7,2348.6,1.20286]
[1725960514525,1.66098672,2348.7,2348.6,1.20286]
[1725960519117,2.08672672,2348.7,2348.6,1.20286]
[1725960519322,2.64038897,2348.8,2348.6,1.20286]
[1725960520116,1.66182703,2348.7,2348.6,1.20286]
[1725960520321,2.21464897,2348.8,2348.6,0.7771]
[1725960520521,0.42574,2348.7,2348.6,0.7771]
[1725960520714,2.21464897,2348.7,2348.6,1.20286]
[1725960521514,2.64038897,2348.7,2348.6,0.7771]
[1725960523025,0.42574,2348.7,2348.6,0.7771]
[1725960526514,0.42574,2348.7,2348.6,0.3917]
[1725960526721,0.4258,2348.4,2348.3,0.3991]
[1725960526916,3.19583184,2348.4,2348.3,1.42978189]
[1725960527221,0.42583,2348.2,2348.1,0.3798]
[1725960527527,3.19577824,2348.2,2348.1,0.3798]
[1725960527826,3.19577824,2348.2,2348.0,1.18996]
[1725960528625,2.76994824,2348.2,2348.0,1.18996]
[1725960528826,2.76994824,2348.2,2348.1,0.42585]
[1725960529022,2.76994824,2348.2,2348.0,1.18996]
[1725960529519,2.76994824,2348.3,2348.2,0.42583]
[1725960530122,1.66169157,2348.3,2348.2,0.42583]
[1725960533927,1.66169157,2348.3,2348.2,0.79763]
[1725960538131,1.66169157,2348.3,2348.2,0.79762]
[1725960538334,2.08750157,2348.4,2348.2,0.79762]
[1725960538830,2.08750157,2348.4,2348.3,0.3985]
[1725960539826,1.66169157,2348.4,2348.3,0.82431]
[1725960540226,2.08749157,2348.4,2348.3,0.82431]
[1725960541037,2.08749157,2348.4,2348.3,0.3985]
[1725960541441,2.45744453,2348.4,2348.3,0.3985]
[1725960542938,1.66054453,2348.4,2348.3,0.82431]
[1725960543130,2.08634453,2348.4,2348.3,0.3985]
[1725960543335,2.08634453,2348.4,2348.3,0.82431]
[1725960543533,2.08634453,2348.4,2348.3,0.3985]
[1725960543760,1.66054453,2348.4,2348.3,0.82431]
[1725960545238,2.21558876,2348.4,2348.3,0.82431]
[1725960546040,2.64138876,2348.4,2348.3,0.3985]
[1725960550756,0.42584,2348.2,2348.0,0.82495]
[1725960550940,0.42584,2348.2,2348.1,0.3866]
[1725960550941,2.08820249,2348.2,2348.1,0.3866]
[1725960551261,0.42584,2348.2,2348.1,0.3866]
[1725960552348,2.08846913,2348.2,2348.1,0.3866]
[1725960553951,2.08846913,2348.2,2348.1,0.81245]
[1725960553952,1.66262913,2348.2,2348.1,0.81245]
[1725960554952,2.08844913,2348.3,2348.1,0.81245]
[1725960555150,1.66262913,2348.3,2348.2,0.42583]
[1725960559252,1.66262913,2348.3,2348.2,1.09153874]
[1725960560247,2.21648332,2348.4,2348.3,0.42581]
[1725960560553,2.21648332,2348.4,2348.3,0.81411]
[1725960562543,3.56542824,2348.5,2348.3,0.81411]
[1725960563460,2.21851096,2348.4,2348.3,0.81411]
[1725960563757,3.56542824,2348.5,2348.3,0.81411]
[1725960563954,0.4258,2348.4,2348.3,0.3883]
[1725960564154,3.19574824,2348.4,2348.2,0.42582]
[1725960564453,2.21878474,2348.3,2348.2,0.42582]
[1725960565056,2.21878474,2348.3,2348.2,1.09153474]
[1725960565451,3.13714824,2348.4,2348.2,1.09153474]
[1725960565653,3.13714824,2348.4,2348.2,0.42582]
[1725960565654,2.21943239,2348.3,2348.2,0.42582]
[1725960565951,2.21943239,2348.3,2348.2,1.09153478]
[1725960566451,3.13714824,2348.4,2348.2,1.09153478]
[1725960566647,3.13714824,2348.4,2348.2,0.42582]
[1725960566855,2.21983033,2348.3,2348.2,0.42582]
[1725960567160,2.21983033,2348.4,2348.3,0.42581]
[1725960567352,2.21983033,2348.4,2348.3,6.41498437]
[1725960567353,1.66513202,2348.4,2348.3,6.41498437]
[1725960567550,1.66513202,2348.5,2348.4,0.4258]
[1725960567750,1.66513202,2348.5,2348.4,8.02187437]
[1725960568554,1.66513202,2348.5,2348.4,8.40197437]
[1725960569459,1.66513202,2348.5,2348.4,6.6712]
[1725960569653,1.66513202,2348.5,2348.4,8.40181448]
[1725960569953,1.66513202,2348.5,2348.4,7.33682095]
[1725960572453,1.66513202,2348.5,2348.4,1.84842095]
[1725960573057,3.44983033,2348.6,2348.4,0.757]
[1725960573262,3.87560033,2348.6,2348.4,0.757]
[1725960573565,3.44983033,2348.5,2348.2,0.42582]
[1725960573803,1.66417665,2348.3,2348.2,0.42583]
[1725960573961,1.66417665,2348.3,2348.2,1.0915541]
[1725960574262,1.66417665,2348.3,2348.2,0.6657241]
[1725960574466,3.41133033,2348.4,2348.1,1.92248599]
[1725960574668,1.66427923,2348.2,2348.1,1.92248599]
[1725960574852,1.66427923,2348.2,2348.1,2.58821302]
[1725960575052,1.66427923,2348.2,2348.1,2.95621302]
[1725960575459,2.21983033,2348.2,2348.1,1.83956703]
[1725960576863,2.21983033,2348.2,2348.1,1.17384]
[1725960577071,2.21983033,2348.2,2348.1,1.83956366]
[1725960580565,2.21983033,2348.2,2348.1,1.17384]
[1725960580868,2.76994824,2348.3,2348.1,0.748]
[1725960580869,3.99994824,2348.3,2348.1,0.748]
[1725960581170,4.42576824,2348.3,2348.1,0.368]
[1725960581376,4.42576824,2348.3,2348.2,0.66574148]
[1725960582375,3.87542637,2348.3,2348.2,0.66574148]
[1725960584666,3.87542637,2348.3,2348.1,0.368]
[1725960584875,3.87542637,2348.3,2348.2,0.66573962]
[1725960585476,3.87542637,2348.3,2348.1,0.368]
[1725960586374,3.87542637,2348.3,2348.2,0.66573931]
[1725960586875,1.65582,2348.3,2348.2,0.66573931]
[1725960587077,3.87492488,2348.3,2348.2,0.66573931]
[1725960588479,1.65582,2348.3,2348.0,0.42587]
[1725960588793,1.66422186,2348.1,2348.0,0.42587]
[1725960589076,1.66422186,2348.1,2348.0,2.15683189]
[1725960589469,1.66422186,2348.1,2348.0,1.73096189]
[1725960589871,1.66422186,2348.1,2347.9,2.26214599]
[1725960590067,1.66422186,2348.1,2348.0,1.73096508]
[1725960590978,1.66422186,2348.1,2348.0,2.15683508]
[1725960592376,1.66422186,2348.1,2348.0,1.73096508]
[1725960592578,1.66422186,2348.1,2348.0,1.73096113]
[1725960593878,1.66422186,2348.1,2348.0,2.15683113]
[1725960595284,1.66422186,2348.1,2348.0,1.73096113]
[1725960595468,1.66422186,2348.1,2348.0,2.15683113]
[1725960596581,1.66422186,2348.1,2348.0,2.15683657]
[1725960597077,1.66422186,2348.1,2348.0,1.73096657]
[1725960597673,1.66422186,2348.1,2348.0,2.15683657]
[1725960600680,1.66422186,2348.1,2348.0,2.15681769]
[1725960601289,1.66422186,2348.2,2348.1,0.42585]
[1725960601585,1.66422186,2348.2,2348.1,2.15672794]
[1725960602087,1.66422186,2348.2,2348.1,2.37227511]
[1725960602880,1.66422186,2348.2,2348.1,2.15672794]
[1725960603089,1.66422186,2348.2,2348.1,1.73087794]
[1725960603382,1.66422186,2348.2,2348.1,2.15672794]
[1725960603585,1.66422186,2348.2,2348.1,1.09159911]
[1725960606985,1.66422186,2348.2,2348.1,2.15673694]
[1725960607180,1.66422186,2348.2,2348.1,1.09159911]
[1725960608184,1.66422186,2348.2,2348.1,2.15673521]
[1725960609297,1.66422186,2348.2,2348.1,3.2733812]
[1725960609587,1.66545726,2348.3,2348.1,2.8475312]
[1725960609888,1.66545726,2348.3,2348.2,1.09157911]
[1725960610194,3.44896248,2348.4,2348.2,0.66574911]
[1725960610492,2.64479248,2348.3,2348.1,0.42584]
[1725960610792,0.3844,2348.2,2348.0,1.54250599]
[1725960610987,1.66559256,2348.1,2348.0,0.42586]
[1725960611187,1.66559256,2348.1,2348.0,2.15681455]
[1725960611392,1.66559256,2348.1,2348.0,0.42586]
[1725960611688,1.66559256,2348.1,2348.0,3.27343174]
[1725960611896,1.66559256,2348.1,2348.0,2.15678575]
[1725960612488,1.66559256,2348.1,2348.0,0.42586]
[1725960612896,1.66559256,2348.1,2348.0,2.15677602]
[1725960613194,2.60336248,2348.2,2348.1,0.42585]
[1725960613384,2.60336248,2348.2,2348.1,1.09158693]
[1725960614797,3.02919248,2348.2,2348.1,0.66573693]
[1725960615001,2.60336248,2348.2,2348.0,0.80176]
[1725960615202,0.81024,2348.2,2348.1,0.66573473]
[1725960616194,3.58018824,2348.2,2348.1,0.66573473]
[1725960616393,0.81024,2348.2,2348.1,0.66573473]
[1725960617299,4.81018824,2348.2,2348.1,0.66573473]
[1725960618396,0.42589,2347.9,2347.5,1.54259599]
[1725960618702,3.45147464,2347.6,2347.5,0.82186]
[1725960618996,3.45147464,2347.6,2347.5,2.55321488]
[1725960619195,3.45147464,2347.6,2347.5,1.48776572]
[1725960620005,2.22147464,2347.6,2347.5,1.48776572]
[1725960620195,5.1502433,2347.8,2347.6,0.42594]
[1725960620196,2.22147464,2347.7,2347.6,0.42594]
[1725960620587,5.02078464,2347.8,2347.6,0.42594]
[1725960620896,4.64188464,2347.8,2347.6,0.42594]
[1725960621397,1.66493579,2347.7,2347.6,0.42594]
[1725960621897,1.66493579,2347.7,2347.6,1.09181443]
[1725960622102,1.66493579,2347.7,2347.6,5.91514]
[1725960622395,1.66493579,2347.9,2347.8,1.49067]
[1725960622592,2.7768433,2348.2,2348.1,0.42585]
[1725960622593,1.66493579,2348.2,2348.1,0.42585]
[1725960622898,1.66493579,2348.2,2348.1,2.15633963]
[1725960623086,1.66493579,2348.4,2348.2,1.06459]
[1725960623290,1.66493579,2348.5,2348.4,0.4258]
[1725960623488,1.66493579,2348.6,2348.5,0.42578]
[1725960623690,1.66493579,2348.7,2348.6,0.42576]
[1725960623895,1.66493579,2348.7,2348.6,1.09161963]
[1725960624104,1.66540492,2348.7,2348.6,0.66585963]
[1725960624309,1.66540492,2348.7,2348.6,1.09161963]
[1725960624602,1.66540492,2348.8,2348.7,0.42574]
[1725960624795,1.66540492,2348.8,2348.7,1.46559963]
[1725960624995,1.66540492,2348.8,2348.7,0.79974]
[1725960625198,1.66540492,2348.8,2348.7,1.46530631]
[1725960625899,1.66540492,2348.8,2348.7,0.79974]
[1725960628402,1.66540492,2348.9,2348.8,0.42572]
[1725960629110,1.66540492,2348.9,2348.7,0.79973]
[1725960629296,1.66540492,2348.9,2348.8,0.42572]
[1725960630604,1.66540492,2348.9,2348.7,0.79973]
[1725960630807,1.66540492,2348.9,2348.8,0.42572]
[1725960631403,2.89540492,2348.9,2348.8,0.42572]
[1725960631798,1.23,2348.9,2348.8,0.42572]
[1725960632003,2.89540492,2348.9,2348.8,0.42572]
[1725960632399,2.89540492,2348.9,2348.7,0.374]
[1725960632599,1.23,2348.9,2348.7,0.374]
[1725960633003,2.89540492,2348.9,2348.7,0.374]
[1725960633207,1.23,2348.9,2348.7,0.374]
[1725960633904,1.23,2348.9,2348.8,0.42572]
[1725960634503,1.23,2348.9,2348.7,0.79973]
[1725960634707,3.45147464,2348.9,2348.7,0.79973]
[1725960635013,2.22147464,2348.8,2348.7,0.79973]
[1725960635310,2.22147464,2348.8,2348.7,0.79974]
[1725960636410,3.45147464,2348.9,2348.7,0.79974]
[1725960637110,3.45147464,2348.9,2348.8,0.42572]
[1725960637608,3.45147464,2348.9,2348.7,0.79973]
[1725960638196,3.45147464,2348.9,2348.8,0.42572]
[1725960638504,3.45147464,2348.9,2348.7,0.79973]
[1725960638707,3.45147464,2348.9,2348.8,0.385]
[1725960639006,3.45147464,2348.9,2348.8,0.81072]
[1725960640402,3.45147464,2348.9,2348.8,0.385]
[1725960640803,3.87717464,2348.9,2348.8,0.385]
[1725960641001,3.45147464,2348.9,2348.4,0.3861]
[1725960641208,1.66074587,2348.6,2348.5,0.42577]
[1725960641506,3.45147464,2348.6,2348.4,0.7551]
[1725960641705,2.64725464,2348.5,2348.4,0.7551]
[1725960641908,2.64725464,2348.5,2348.3,0.42581]
[1725960642105,1.66035129,2348.4,2348.3,0.42581]
[1725960642804,1.6558,2348.4,2348.2,0.7369]
[1725960643011,1.23,2348.4,2348.2,1.16273]
[1725960643308,1.23,2348.4,2348.2,1.16272]
[1725960643511,1.23,2348.4,2348.3,0.42581]
[1725960643706,1.23,2348.4,2348.2,1.16272]
[1725960644797,1.23,2348.4,2348.2,0.7369]
[1725960645002,1.23,2348.3,2347.7,2.83069119]
[1725960645197,1.23,2348.3,2347.8,1.03742831]
[1725960645513,1.23,2348.3,2347.9,0.398]
[1725960645814,1.23,2348.3,2348.1,0.42584]
[1725960647909,1.23,2348.4,2348.0,1.23]
[1725960648111,1.66035129,2348.5,2348.3,0.42581]
[1725960648112,0.42578,2348.5,2348.3,0.42581]
[1725960648412,3.29425129,2348.6,2348.3,0.42581]
[1725960648611,3.72002129,2348.6,2348.4,0.387]
[1725960649112,1.66035129,2348.5,2348.4,0.387]
[1725960649314,2.08613129,2348.5,2348.2,0.42582]
[1725960649705,2.08613129,2348.5,2348.3,0.42581]
[1725960650317,0.42578,2348.5,2348.3,0.42581]
[1725960650516,2.08613129,2348.5,2348.3,0.42581]
[1725960651221,0.42578,2348.5,2348.3,0.42581]
[1725960656120,0.42578,2348.5,2348.2,0.42582]
[1725960656121,0.42579,2348.5,2348.2,0.42582]
[1725960656309,0.42579,2348.5,2348.3,0.42581]
[1725960656717,2.08614129,2348.5,2348.3,0.42581]
[1725960656915,0.42579,2348.5,2348.3,0.42581]
[1725960660714,0.4258,2348.4,2348.1,0.7614]
[1725960660918,1.23,2348.4,2348.2,0.42583]
[1725960661223,1.65581,2348.4,2348.2,0.42583]
[1725960661424,1.23,2348.4,2348.1,0.387]
[1725960661626,0.80823,2348.3,2348.1,0.387]
[1725960661820,1.17643,2348.3,2348.1,0.81285]
[1725960662030,1.6558,2348.4,2348.2,0.42583]
[1725960662521,1.6558,2348.4,2348.3,0.3908]
[1725960665330,0.42583,2348.2,2348.0,0.42586]
[1725960666032,1.17083,2348.3,2348.1,0.42585]
[1725960666218,0.79293,2348.3,2348.2,0.4014]
[1725960667322,2.45328129,2348.3,2348.2,0.4014]
[1725960668629,0.42584,2348.2,2348.0,0.42586]
[1725960668828,2.85309129,2348.2,2348.0,0.42586]
[1725960669327,1.19274,2348.2,2348.0,0.42586]
[1725960669725,0.3795,2348.2,2348.1,0.42585]
[1725960669926,2.08618129,2348.3,2348.1,0.42585]
[1725960670228,2.08618129,2348.3,2348.2,0.82723]
[1725960670229,1.66035129,2348.3,2348.2,0.82723]
[1725960671231,1.66035129,2348.3,2348.2,1.20743]
[1725960672329,2.64726464,2348.5,2348.3,0.42581]
[1725960672724,2.22147464,2348.5,2348.4,0.4258]
[1725960672925,0.42579,2348.5,2348.3,0.42581]
[1725960673124,1.66262251,2348.4,2348.3,0.42581]
[1725960674127,2.08842251,2348.4,2348.2,0.7816]
[1725960674833,1.66262251,2348.4,2348.3,0.42581]
[1725960675427,2.22147464,2348.5,2348.3,0.42581]
[1725960675627,1.66346488,2348.4,2348.3,0.42581]
[1725960675828,2.22147464,2348.5,2348.2,1.20742]
[1725960676024,1.66345758,2348.3,2348.2,1.20742]
[1725960676229,1.66345758,2348.3,2348.2,1.8731365]
[1725960676838,2.08926758,2348.4,2348.3,0.42581]
[1725960677434,2.08926758,2348.4,2348.2,1.20742]
[1725960677639,2.08926758,2348.4,2348.3,0.42581]
[1725960677943,0.42579,2348.5,2348.2,0.7816]
[1725960678135,2.64724464,2348.6,2348.3,0.66569781]
[1725960678340,2.64722464,2348.7,2348.4,0.66569781]
[1725960678534,2.64722464,2348.7,2348.5,1.20217]
[1725960678734,2.64722464,2348.7,2348.6,0.3747]
[1725960680047,3.87722464,2348.7,2348.6,0.3747]
[1725960682542,1.65575,2348.7,2348.6,0.3747]
[1725960683051,2.04265,2348.7,2348.6,0.3747]
[1725960684446,2.22005404,2348.8,2348.6,6.52794543]
[1725960684741,2.31905404,2349.2,2349.0,0.42569]
[1725960685042,2.64569404,2349.3,2349.1,1.79544543]
[1725960685250,0.42569,2349.0,2348.9,1.11617569]
[1725960685540,0.42569,2349.0,2348.6,1.11617569]
[1725960685541,0.42572,2348.8,2348.6,1.11617569]
[1725960685752,3.87578404,2348.8,2348.5,4.4638]
[1725960686047,3.87578404,2348.8,2348.5,0.3818]
[1725960686243,1.23,2348.6,2348.5,0.3818]
[1725960686541,1.23,2348.6,2348.4,0.3664]
[1725960686542,0.42578,2348.5,2348.4,0.3664]
[1725960686741,2.64583404,2348.5,2348.3,0.3818]
[1725960687152,3.87583404,2348.5,2348.3,0.3818]
[1725960687348,3.83775404,2348.5,2348.3,0.3818]
[1725960687547,3.45005404,2348.5,2348.3,0.3818]
[1725960687935,2.7768433,2348.4,2348.3,0.3818]
[1725960688949,0.42579,2348.5,2348.3,0.3818]
[1725960689550,0.4258,2348.4,2348.3,0.3818]
[1725960690042,0.42579,2348.5,2348.2,0.3748]
[1725960690241,2.77220432,2348.3,2348.2,0.3748]
[1725960690953,2.77220432,2348.3,2348.0,0.3948]
[1725960691153,2.21770725,2348.1,2348.0,0.3948]
[1725960691358,2.21770725,2348.1,2348.0,1.06055204]
[1725960691849,2.21770725,2348.1,2348.0,1.06055644]
[1725960692247,2.21770725,2348.1,2348.0,0.3948]
[1725960692445,2.21770725,2348.1,2348.0,1.06055777]
[1725960692651,2.21770725,2348.1,2348.0,0.3948]
[1725960693356,2.21770725,2348.1,2348.0,1.06055002]
[1725960693656,2.21770725,2348.1,2348.0,0.3948]
[1725960694972,0.3988,2348.2,2348.0,0.3948]
[1725960695267,3.03123725,2348.3,2348.0,0.3948]
[1725960696058,0.42584,2348.2,2348.0,0.3948]
[1725960696360,3.03984725,2348.2,2348.0,0.3948]
[1725960696772,0.82214,2348.2,2348.0,0.3948]
[1725960696963,3.03122725,2348.3,2348.0,0.82067]
[1725960697165,2.21770725,2348.3,2348.1,0.42585]
[1725960697362,2.21770725,2348.3,2348.0,0.82066]
[1725960697965,2.64352725,2348.3,2348.0,0.82066]
[1725960698278,2.21770725,2348.3,2348.1,0.42584]
[1725960698457,2.21770725,2348.3,2348.0,0.3948]
[1725960698659,2.64350725,2348.4,2348.1,0.42585]
[1725960700073,2.21770725,2348.4,2348.2,0.42583]
[1725960700472,2.21770725,2348.4,2348.3,0.7434]
[1725960702674,2.21770725,2348.5,2348.3,1.16921]
[1725960703075,2.64347725,2348.6,2348.3,1.16921]
[1725960704080,2.21770725,2348.6,2348.4,0.42578]
[1725960704266,2.21770725,2348.7,2348.5,0.42577]
[1725960704471,2.21770725,2348.8,2348.4,0.3866]
[1725960704668,2.64343725,2348.8,2348.5,0.42578]
[1725960704875,2.64343725,2348.8,2348.4,0.3866]
[1725960705075,2.21770725,2348.8,2348.4,3.0466]
[1725960705380,0.42571,2348.9,2348.7,0.42573]
[1725960705381,2.21770725,2348.9,2348.7,0.42573]
[1725960705576,2.64340725,2349.0,2348.8,0.784]
[1725960706074,0.4257,2349.0,2348.8,0.784]
[1725960706678,2.64340725,2349.0,2348.8,0.784]
[1725960707072,0.4257,2349.0,2348.8,0.784]
[1725960708378,0.4257,2348.9,2348.8,0.784]
[1725960708582,2.64340725,2349.0,2348.8,0.784]
[1725960711169,0.4257,2349.0,2348.8,0.784]
[1725960712081,5.30338725,2349.1,2348.8,1.60032]
[1725960713084,2.64336725,2349.2,2348.9,0.4257]
[1725960713286,0.42568,2349.1,2348.8,1.60031]
[1725960713490,0.4257,2349.0,2348.8,0.784]
[1725960713784,2.66,2348.9,2348.8,0.784]
[1725960713969,2.66,2348.9,2348.6,0.42575]
[1725960714174,2.66,2348.9,2348.6,1.19295]
[1725960714583,3.08571,2348.9,2348.6,1.19295]
[1725960716184,1.65571,2348.9,2348.6,1.19295]
[1725960716679,1.65571,2348.9,2348.6,0.7672]
[1725960717675,1.65571,2348.9,2348.6,1.19295]
[1725960717978,1.23,2348.9,2348.6,1.19295]
[1725960718183,3.44770725,2348.9,2348.6,1.19295]
[1725960719489,3.87341725,2348.9,2348.6,1.19295]
[1725960722292,3.44770725,2348.9,2348.7,0.42573]
[1725960722484,2.21770725,2348.9,2348.8,0.42572]
[1725960722789,3.44770725,2349.0,2348.9,0.4257]
[1725960722988,2.21770725,2349.0,2348.8,0.42572]
[1725960723189,2.21770725,2349.0,2348.9,0.3977]
[1725960723496,2.21770725,2349.0,2348.9,0.77]
[1725960723685,2.21770725,2349.0,2348.9,1.1957]
[1725960723885,2.21770725,2349.0,2348.9,0.77]
[1725960724685,2.64337725,2349.1,2348.9,0.77]
[1725960725190,0.42567,2349.1,2348.9,0.77]
[1725960726785,0.42567,2349.1,2348.9,0.3723]
[1725960727695,3.84820725,2349.2,2348.9,0.3723]
[1725960727890,0.42567,2349.1,2348.9,0.3723]
[1725960728493,3.84820725,2349.2,2348.9,0.798]
[1725960728691,0.42567,2349.1,2349.0,0.4006]
[1725960730686,4.27386725,2349.2,2349.0,0.4006]
[1725960730993,0.42567,2349.1,2349.0,0.4006]
[1725960731687,2.61820725,2349.2,2349.0,0.82628]
[1725960731887,2.21770725,2349.3,2349.2,0.42565]
[1725960732088,4.24101725,2349.5,2349.2,0.42565]
[1725960732293,2.02331,2349.5,2349.1,0.3878]
[1725960732486,0.42562,2349.4,2349.2,0.81114]
[1725960733087,2.64332725,2349.4,2349.2,0.81114]
[1725960733287,2.64332725,2349.4,2349.3,0.42563]
[1725960733288,2.21770725,2349.4,2349.3,0.42563]
[1725960733482,2.61260725,2349.5,2349.3,0.42563]
[1725960734194,2.21770725,2349.5,2349.3,0.42563]
[1725960734388,2.64330725,2349.5,2349.2,0.3855]
[1725960734695,1.23,2349.3,2349.0,0.4006]
[1725960734894,1.1784,2349.2,2349.0,0.82627]
[1725960735098,0.7956,2349.2,2349.0,0.82628]
[1725960735299,2.61260725,2349.2,2349.1,0.3929]
[1725960735494,0.3949,2349.2,2349.1,0.3929]
[1725960735796,2.21770725,2349.3,2349.1,0.81857]
[1725960735995,2.21770725,2349.3,2349.1,1.18837]
[1725960736497,2.64334725,2349.3,2349.1,0.7627]
[1725960737493,0.42565,2349.2,2349.1,0.3929]
[1725960737687,2.64334725,2349.3,2349.1,0.3929]
[1725960740296,0.42564,2349.3,2349.1,0.3929]
[1725960742801,1.23,2349.2,2348.8,1.23]
[1725960743000,1.65571,2348.9,2348.7,0.7645]
[1725960743198,1.23,2348.9,2348.7,0.79364]
[1725960743497,1.65571,2348.9,2348.7,0.79364]
[1725960743697,1.23,2348.9,2348.7,0.79364]
[1725960743997,0.4257,2348.9,2348.7,0.3679]
[1725960744196,0.8125,2349.0,2348.7,0.79364]
[1725960744799,0.42571,2348.9,2348.7,0.79364]
[1725960745401,0.42571,2348.9,2348.7,0.3679]
[1725960745700,0.42572,2348.8,2348.7,0.3679]
[1725960746102,0.42572,2348.9,2348.7,0.3679]
[1725960746396,0.42574,2348.8,2348.5,0.3966]
[1725960746602,0.42574,2348.7,2348.5,0.7993]
[1725960746803,0.3655,2348.6,2348.5,1.22508]
[1725960747398,0.79126,2348.6,2348.5,0.7993]
[1725960747701,0.3655,2348.6,2348.5,0.7993]
[1725960748292,4.63093725,2348.8,2348.5,1.22508]
[1725960748498,0.42574,2348.7,2348.5,1.22508]
[1725960749192,4.99843725,2348.8,2348.5,1.22508]